[Event "Live Chess"]
[Site "Chess.com"]
[Date "2023.05.20"]
[Round "-"]
[White "EdenHazard8"]
[Black "Biranidun"]
[Result "0-1"]
[WhiteElo "2044"]
[BlackElo "2766"]
[TimeControl "300"]
[EndTime "15:00:57 PDT"]
[Termination "Biranidun won by checkmate"]

1. e4 {[%clk 0:04:58.6]} 1... c5 {[%clk 0:04:59]} 2. Nf3 {[%clk 0:04:54.8]} 2...
d6 {[%clk 0:04:58.4]} 3. d4 {[%clk 0:04:54.2]} 3... cxd4 {[%clk 0:04:58.3]} 4.
Nxd4 {[%clk 0:04:53.7]} 4... Nf6 {[%clk 0:04:57.6]} 5. Nc3 {[%clk 0:04:51.4]}
5... g6 {[%clk 0:04:57.2]} 6. f3 {[%clk 0:04:49.5]} 6... Bg7 {[%clk 0:04:56.2]}
7. Be3 {[%clk 0:04:48.1]} 7... O-O {[%clk 0:04:55.9]} 8. Qd2 {[%clk 0:04:47.4]}
8... Nc6 {[%clk 0:04:55.5]} 9. O-O-O {[%clk 0:04:45.7]} 9... d5 {[%clk 0:04:55]}
10. Kb1 {[%clk 0:04:43.1]} 10... Nxd4 {[%clk 0:04:53]} 11. Bxd4 {[%clk
0:04:37.6]} 11... dxe4 {[%clk 0:04:52]} 12. fxe4 {[%clk 0:04:36]} 12... Bg4
{[%clk 0:04:49]} 13. Be2 {[%clk 0:04:32.2]} 13... Be6 {[%clk 0:04:41]} 14. Bf3
{[%clk 0:04:23.8]} 14... Qc7 {[%clk 0:04:30.2]} 15. e5 {[%clk 0:04:18]} 15...
Nd7 {[%clk 0:04:25.1]} 16. Rhe1 {[%clk 0:03:55.5]} 16... Nxe5 {[%clk 0:04:23.6]}
17. Qf4 {[%clk 0:03:54]} 17... f6 {[%clk 0:04:16.5]} 18. Bd5 {[%clk 0:03:05.4]}
18... Bf7 {[%clk 0:03:47.4]} 19. Bxf7+ {[%clk 0:02:43.1]} 19... Rxf7 {[%clk
0:03:47.3]} 20. Nd5 {[%clk 0:02:41.9]} 20... Qc6 {[%clk 0:03:41.2]} 21. Qe4
{[%clk 0:02:24.4]} 21... Rc8 {[%clk 0:03:20.6]} 22. Bxe5 {[%clk 0:02:15.7]}
22... fxe5 {[%clk 0:03:20.5]} 23. Rf1 {[%clk 0:02:15]} 23... Bf6 {[%clk
0:02:39.1]} 24. Rf2 {[%clk 0:01:40.4]} 24... Kg7 {[%clk 0:02:32.8]} 25. Rdf1
{[%clk 0:01:36.2]} 25... Rd8 {[%clk 0:02:10]} 26. Nc3 {[%clk 0:01:22.7]} 26...
Qxe4 {[%clk 0:02:07.4]} 27. Nxe4 {[%clk 0:01:21]} 27... Rff8 {[%clk 0:01:22]}
28. Nc5 {[%clk 0:01:13.6]} 28... Rd6 {[%clk 0:01:14.1]} 29. Nxb7 {[%clk
0:01:02.7]} 29... Rd5 {[%clk 0:01:05.5]} 30. c4 {[%clk 0:00:56.8]} 30... Rd4
{[%clk 0:01:03.7]} 31. Nc5 {[%clk 0:00:54.9]} 31... Kf7 {[%clk 0:00:58.1]} 32.
b3 {[%clk 0:00:49.9]} 32... Rc8 {[%clk 0:00:54]} 33. Na4 {[%clk 0:00:44.9]}
33... e4 {[%clk 0:00:51.7]} 34. Re2 {[%clk 0:00:36.5]} 34... Rb8 {[%clk
0:00:49.4]} 35. Kc2 {[%clk 0:00:31.6]} 35... Kg8 {[%clk 0:00:38.5]} 36. Rfe1
{[%clk 0:00:21.5]} 36... Rbd8 {[%clk 0:00:36.4]} 37. Nc3 {[%clk 0:00:17.9]}
37... e3 {[%clk 0:00:35.8]} 38. Nd5 {[%clk 0:00:15.4]} 38... Kf7 {[%clk
0:00:32.8]} 39. Nxe3 {[%clk 0:00:12.7]} 39... e6 {[%clk 0:00:29.7]} 40. g4
{[%clk 0:00:10.7]} 40... R8d6 {[%clk 0:00:27]} 41. Rf1 {[%clk 0:00:09.9]} 41...
Kg7 {[%clk 0:00:25.9]} 42. Ng2 {[%clk 0:00:08.9]} 42... g5 {[%clk 0:00:23.9]}
43. Ne3 {[%clk 0:00:07.7]} 43... Kg6 {[%clk 0:00:22.4]} 44. h3 {[%clk 0:00:07]}
44... Re4 {[%clk 0:00:21.7]} 45. c5 {[%clk 0:00:05.8]} 45... Rc6 {[%clk
0:00:20.9]} 46. Rf3 {[%clk 0:00:02.7]} 46... Rxc5+ {[%clk 0:00:20.2]} 47. Kd3
{[%clk 0:00:01.7]} 47... Rd4# {[%clk 0:00:19.8]} 0-1

[Event "Live Chess"]
[Site "Chess.com"]
[Date "2023.05.20"]
[Round "-"]
[White "f4nomore"]
[Black "CeladonFish"]
[Result "1-0"]
[WhiteElo "1416"]
[BlackElo "1165"]
[TimeControl "300"]
[EndTime "15:01:14 PDT"]
[Termination "f4nomore won by checkmate"]

1. b3 {[%clk 0:04:57.1]} 1... Nf6 {[%clk 0:04:57.2]} 2. Bb2 {[%clk 0:04:56]}
2... g6 {[%clk 0:04:53.4]} 3. e3 {[%clk 0:04:54.6]} 3... Bg7 {[%clk 0:04:51.9]}
4. Nf3 {[%clk 0:04:53.7]} 4... d5 {[%clk 0:04:50.7]} 5. Be2 {[%clk 0:04:52.5]}
5... c5 {[%clk 0:04:49.8]} 6. O-O {[%clk 0:04:51]} 6... Bf5 {[%clk 0:04:47]} 7.
d4 {[%clk 0:04:49]} 7... cxd4 {[%clk 0:04:45.4]} 8. Nxd4 {[%clk 0:04:46.8]} 8...
Ne4 {[%clk 0:04:34.3]} 9. Nd2 {[%clk 0:04:42.3]} 9... Nxd2 {[%clk 0:04:32.5]}
10. Qxd2 {[%clk 0:04:40.3]} 10... O-O {[%clk 0:04:28.8]} 11. Nxf5 {[%clk
0:04:38.2]} 11... Bxb2 {[%clk 0:04:26.8]} 12. Nh6+ {[%clk 0:04:24.8]} 12... Kg7
{[%clk 0:04:25]} 13. Rab1 {[%clk 0:04:20.1]} 13... Kxh6 {[%clk 0:04:23.1]} 14.
Rxb2 {[%clk 0:04:17.6]} 14... Kg7 {[%clk 0:04:22.8]} 15. Qd4+ {[%clk 0:04:14.4]}
15... Kg8 {[%clk 0:04:21.3]} 16. Bf3 {[%clk 0:04:07.3]} 16... e6 {[%clk
0:04:16.7]} 17. Rbb1 {[%clk 0:04:05.1]} 17... Nc6 {[%clk 0:04:15.7]} 18. Qd2
{[%clk 0:04:02.2]} 18... Re8 {[%clk 0:04:09]} 19. Rbc1 {[%clk 0:03:59.4]} 19...
Ne5 {[%clk 0:04:03.9]} 20. Be2 {[%clk 0:03:56.6]} 20... Nc6 {[%clk 0:03:55.1]}
21. c4 {[%clk 0:03:52]} 21... dxc4 {[%clk 0:03:50.9]} 22. Qxd8 {[%clk
0:03:49.6]} 22... Raxd8 {[%clk 0:03:50.2]} 23. Bxc4 {[%clk 0:03:47.5]} 23... a6
{[%clk 0:03:46.8]} 24. Be2 {[%clk 0:03:41.3]} 24... Rd2 {[%clk 0:03:44]} 25. Bf3
{[%clk 0:03:38]} 25... Rc8 {[%clk 0:03:36.1]} 26. a4 {[%clk 0:03:32.4]} 26...
Rb2 {[%clk 0:03:35]} 27. Rc3 {[%clk 0:03:28.7]} 27... Kg7 {[%clk 0:03:16.7]} 28.
h3 {[%clk 0:03:27.4]} 28... Rc7 {[%clk 0:03:11.4]} 29. Rfc1 {[%clk 0:03:24.9]}
29... f6 {[%clk 0:02:59.6]} 30. Bxc6 {[%clk 0:03:22.2]} 30... bxc6 {[%clk
0:02:53.6]} 31. Rxc6 {[%clk 0:03:19.5]} 31... Rxc6 {[%clk 0:02:51]} 32. Rxc6
{[%clk 0:03:18.2]} 32... Rxb3 {[%clk 0:02:50]} 33. Rxa6 {[%clk 0:03:16.9]} 33...
e5 {[%clk 0:02:48.5]} 34. Ra7+ {[%clk 0:03:07.9]} 34... Kf8 {[%clk 0:02:46.7]}
35. a5 {[%clk 0:03:06.5]} 35... Ke8 {[%clk 0:02:46]} 36. a6 {[%clk 0:03:05.2]}
36... Kd8 {[%clk 0:02:41.5]} 37. Rxh7 {[%clk 0:03:01.2]} 37... Ra3 {[%clk
0:02:36.3]} 38. a7 {[%clk 0:02:59.7]} 38... Kc8 {[%clk 0:02:33.3]} 39. a8=Q+
{[%clk 0:02:56]} 39... Rxa8 {[%clk 0:02:30.9]} 40. Rh8+ {[%clk 0:02:54.6]} 40...
Kb7 {[%clk 0:02:28.9]} 41. Rxa8 {[%clk 0:02:51]} 41... Kxa8 {[%clk 0:02:27.9]}
42. Kf1 {[%clk 0:02:50.2]} 42... Kb7 {[%clk 0:02:27.6]} 43. Ke2 {[%clk
0:02:49.3]} 43... Kc6 {[%clk 0:02:27.3]} 44. Kd3 {[%clk 0:02:48.5]} 44... Kd5
{[%clk 0:02:27]} 45. e4+ {[%clk 0:02:46.8]} 45... Ke6 {[%clk 0:02:26.5]} 46. g3
{[%clk 0:02:43.3]} 46... f5 {[%clk 0:02:25.7]} 47. exf5+ {[%clk 0:02:40.3]}
47... Kxf5 {[%clk 0:02:24.7]} 48. Ke3 {[%clk 0:02:38.8]} 48... g5 {[%clk
0:02:21.3]} 49. f3 {[%clk 0:02:37.1]} 49... Kf6 {[%clk 0:02:19.3]} 50. Ke4
{[%clk 0:02:35.3]} 50... Ke6 {[%clk 0:02:16.9]} 51. h4 {[%clk 0:02:31.1]} 51...
gxh4 {[%clk 0:02:12.4]} 52. gxh4 {[%clk 0:02:29.5]} 52... Kf6 {[%clk 0:02:11.4]}
53. h5 {[%clk 0:02:27.8]} 53... Kf7 {[%clk 0:02:01.6]} 54. Kxe5 {[%clk
0:02:26.4]} 54... Kg7 {[%clk 0:01:59.9]} 55. Kf5 {[%clk 0:02:25.1]} 55... Kh6
{[%clk 0:01:56.8]} 56. Kg4 {[%clk 0:02:20.5]} 56... Kg7 {[%clk 0:01:53.6]} 57.
Kg5 {[%clk 0:02:18.5]} 57... Kh7 {[%clk 0:01:52.3]} 58. f4 {[%clk 0:02:16]}
58... Kg7 {[%clk 0:01:51.7]} 59. f5 {[%clk 0:02:15]} 59... Kh7 {[%clk
0:01:50.8]} 60. f6 {[%clk 0:02:09.1]} 60... Kg8 {[%clk 0:01:50]} 61. Kg6 {[%clk
0:02:07.6]} 61... Kh8 {[%clk 0:01:49]} 62. h6 {[%clk 0:02:03.6]} 62... Kg8
{[%clk 0:01:48.3]} 63. f7+ {[%clk 0:01:59]} 63... Kf8 {[%clk 0:01:45.6]} 64. h7
{[%clk 0:01:57.1]} 64... Ke7 {[%clk 0:01:44.3]} 65. h8=Q {[%clk 0:01:55.4]}
65... Ke6 {[%clk 0:01:43.2]} 66. Qe8+ {[%clk 0:01:53.5]} 66... Kd5 {[%clk
0:01:40.1]} 67. f8=Q {[%clk 0:01:51.7]} 67... Kd4 {[%clk 0:01:38.8]} 68. Qd6+
{[%clk 0:01:49.5]} 68... Kc4 {[%clk 0:01:37.6]} 69. Qc8+ {[%clk 0:01:48.1]}
69... Kb5 {[%clk 0:01:36.3]} 70. Qdc6+ {[%clk 0:01:36.4]} 70... Ka5 {[%clk
0:01:31.6]} 71. Q8a6+ {[%clk 0:01:28.7]} 71... Kb4 {[%clk 0:01:30.4]} 72. Qab6+
{[%clk 0:01:26]} 72... Ka3 {[%clk 0:01:29.1]} 73. Qa8# {[%clk 0:01:24.6]} 1-0

[Event "Live Chess"]
[Site "Chess.com"]
[Date "2023.05.20"]
[Round "-"]
[White "Ed_Knox"]
[Black "wadsy27"]
[Result "0-1"]
[WhiteElo "1435"]
[BlackElo "2560"]
[TimeControl "300"]
[EndTime "15:01:14 PDT"]
[Termination "wadsy27 won by resignation"]

1. d4 {[%clk 0:04:56.5]} 1... d5 {[%clk 0:04:56.1]} 2. Bf4 {[%clk 0:04:54.8]}
2... Nf6 {[%clk 0:04:54.5]} 3. e3 {[%clk 0:04:54]} 3... c5 {[%clk 0:04:51.9]} 4.
Nf3 {[%clk 0:04:53.1]} 4... Nc6 {[%clk 0:04:51.2]} 5. Nbd2 {[%clk 0:04:51.1]}
5... Bg4 {[%clk 0:04:48.9]} 6. Be2 {[%clk 0:04:48.9]} 6... e6 {[%clk 0:04:47.4]}
7. c3 {[%clk 0:04:47.6]} 7... Rc8 {[%clk 0:04:44.7]} 8. h3 {[%clk 0:04:43.1]}
8... Bh5 {[%clk 0:04:43.4]} 9. O-O {[%clk 0:04:34.4]} 9... Bd6 {[%clk
0:04:37.5]} 10. Bxd6 {[%clk 0:04:29.8]} 10... Qxd6 {[%clk 0:04:34.3]} 11. dxc5
{[%clk 0:04:04.2]} 11... Qxc5 {[%clk 0:04:33]} 12. Nb3 {[%clk 0:03:57.9]} 12...
Qe7 {[%clk 0:04:28.6]} 13. Nbd4 {[%clk 0:03:55.1]} 13... O-O {[%clk 0:04:25.9]}
14. Nxc6 {[%clk 0:03:44.1]} 14... bxc6 {[%clk 0:04:24.2]} 15. Ne5 {[%clk
0:03:40.4]} 15... Bxe2 {[%clk 0:04:21.3]} 16. Qxe2 {[%clk 0:03:39.1]} 16... Nd7
{[%clk 0:04:20.9]} 17. Nd3 {[%clk 0:03:27.3]} 17... c5 {[%clk 0:04:19.3]} 18. b3
{[%clk 0:03:22.1]} 18... c4 {[%clk 0:04:18]} 19. bxc4 {[%clk 0:03:12.4]} 19...
Rxc4 {[%clk 0:04:16.9]} 20. Rfc1 {[%clk 0:03:05.5]} 20... Rfc8 {[%clk
0:04:13.1]} 21. Qd2 {[%clk 0:02:59.4]} 21... Nf6 {[%clk 0:04:08.2]} 22. f3
{[%clk 0:02:47.5]} 22... Qa3 {[%clk 0:04:01.2]} 23. Ne5 {[%clk 0:02:43.4]} 23...
Rxc3 {[%clk 0:03:59]} 24. Rxc3 {[%clk 0:02:34.3]} 24... Qxc3 {[%clk 0:03:56.8]}
25. Qxc3 {[%clk 0:02:11.5]} 25... Rxc3 {[%clk 0:03:56.7]} 26. Rb1 {[%clk
0:02:10.8]} 26... h6 {[%clk 0:03:54.4]} 27. Rb3 {[%clk 0:02:04.1]} 27... Rxb3
{[%clk 0:03:50.7]} 28. axb3 {[%clk 0:02:02.9]} 28... Kf8 {[%clk 0:03:36.9]} 29.
Nc6 {[%clk 0:01:58.3]} 29... Ke8 {[%clk 0:03:32.5]} 30. Nxa7 {[%clk 0:01:55.5]}
30... Kd7 {[%clk 0:03:31.6]} 31. Nb5 {[%clk 0:01:54.4]} 31... Kc6 {[%clk
0:03:30.3]} 32. Nd4+ {[%clk 0:01:53.3]} 32... Kc5 {[%clk 0:03:29.2]} 33. Kf2
{[%clk 0:01:50.9]} 33... Kb4 {[%clk 0:03:25.2]} 34. f4 {[%clk 0:01:49.5]} 34...
Ne4+ {[%clk 0:03:23.9]} 35. Kf3 {[%clk 0:01:46.5]} 35... Nc5 {[%clk 0:03:23.1]}
36. f5 {[%clk 0:01:43.1]} 36... Nxb3 {[%clk 0:03:06.3]} 37. Nxb3 {[%clk
0:01:36.9]} 37... Kxb3 {[%clk 0:03:04.6]} 38. fxe6 {[%clk 0:01:36.5]} 38... fxe6
{[%clk 0:03:03.3]} 39. Kf4 {[%clk 0:01:36]} 39... Kc3 {[%clk 0:02:59.3]} 40. Ke5
{[%clk 0:01:27.4]} 40... Kd3 {[%clk 0:02:56.9]} 41. Kxe6 {[%clk 0:01:24.2]}
41... Kxe3 {[%clk 0:02:56]} 42. Kxd5 {[%clk 0:01:23.2]} 42... Kf2 {[%clk
0:02:55.6]} 43. g4 {[%clk 0:01:15.4]} 43... Kg3 {[%clk 0:02:53]} 44. Ke5 {[%clk
0:01:14.8]} 44... Kxh3 {[%clk 0:02:47.8]} 45. Kf5 {[%clk 0:01:12.6]} 45... g5
{[%clk 0:02:47]} 46. Kg6 {[%clk 0:01:04]} 46... Kxg4 {[%clk 0:02:45.8]} 47. Kxh6
{[%clk 0:01:03.4]} 47... Kh4 {[%clk 0:02:45]} 48. Kg6 {[%clk 0:01:02]} 48... g4
{[%clk 0:02:44.5]} 49. Kf5 {[%clk 0:01:01.7]} 49... g3 {[%clk 0:02:44]} 50. Kf4
{[%clk 0:01:01.3]} 50... g2 {[%clk 0:02:43.4]} 51. Kf3 {[%clk 0:01:00.9]} 51...
g1=Q {[%clk 0:02:42.8]} 0-1

[Event "Live Chess"]
[Site "Chess.com"]
[Date "2023.05.20"]
[Round "-"]
[White "Pablo_dmp"]
[Black "CheckThis4"]
[Result "0-1"]
[WhiteElo "1872"]
[BlackElo "2547"]
[TimeControl "300"]
[EndTime "15:01:21 PDT"]
[Termination "CheckThis4 won by resignation"]

1. e4 {[%clk 0:04:59.5]} 1... d5 {[%clk 0:04:56.9]} 2. exd5 {[%clk 0:04:58.1]}
2... Nf6 {[%clk 0:04:56.5]} 3. c4 {[%clk 0:04:50.9]} 3... e6 {[%clk 0:04:55]} 4.
dxe6 {[%clk 0:04:45.6]} 4... Bxe6 {[%clk 0:04:54.9]} 5. Be2 {[%clk 0:04:39.8]}
5... Nc6 {[%clk 0:04:52.1]} 6. Nc3 {[%clk 0:04:34.6]} 6... Bc5 {[%clk
0:04:49.4]} 7. Nf3 {[%clk 0:04:29.6]} 7... Nd4 {[%clk 0:04:44.9]} 8. Nxd4 {[%clk
0:04:26.4]} 8... Qxd4 {[%clk 0:04:43]} 9. O-O {[%clk 0:04:25.1]} 9... O-O-O
{[%clk 0:04:42]} 10. d3 {[%clk 0:04:21.4]} 10... Qh4 {[%clk 0:04:40.2]} 11. Be3
{[%clk 0:04:15.6]} 11... Bd6 {[%clk 0:04:36.9]} 12. g3 {[%clk 0:04:13.6]} 12...
Qh3 {[%clk 0:04:35.8]} 13. Bf3 {[%clk 0:04:12.6]} 13... Ng4 {[%clk 0:04:28.8]}
14. Bxg4 {[%clk 0:04:07.9]} 14... Bxg4 {[%clk 0:04:28.7]} 0-1

[Event "Live Chess"]
[Site "Chess.com"]
[Date "2023.05.20"]
[Round "-"]
[White "diana21strabt"]
[Black "mikkyb4"]
[Result "1-0"]
[WhiteElo "1696"]
[BlackElo "1007"]
[TimeControl "300"]
[EndTime "15:01:36 PDT"]
[Termination "diana21strabt won by checkmate"]

1. e4 {[%clk 0:04:55.6]} 1... g6 {[%clk 0:04:58.6]} 2. Nf3 {[%clk 0:04:54.1]}
2... Bg7 {[%clk 0:04:57.6]} 3. d4 {[%clk 0:04:53.3]} 3... d6 {[%clk 0:04:56.5]}
4. Be3 {[%clk 0:04:52.5]} 4... Nf6 {[%clk 0:04:52.7]} 5. Nc3 {[%clk 0:04:49.2]}
5... Nc6 {[%clk 0:04:46.4]} 6. h3 {[%clk 0:04:47.5]} 6... a6 {[%clk 0:04:44.2]}
7. Qd2 {[%clk 0:04:46]} 7... b5 {[%clk 0:04:43.3]} 8. a3 {[%clk 0:04:43.3]} 8...
Bb7 {[%clk 0:04:39]} 9. Bh6 {[%clk 0:04:36.7]} 9... O-O {[%clk 0:04:36.1]} 10.
Bxg7 {[%clk 0:04:35.2]} 10... Kxg7 {[%clk 0:04:35]} 11. g4 {[%clk 0:04:33.6]}
11... h6 {[%clk 0:04:30.8]} 12. g5 {[%clk 0:04:31.6]} 12... Nxe4 {[%clk
0:04:19.6]} 13. Nxe4 {[%clk 0:04:28.6]} 13... h5 {[%clk 0:04:18.6]} 14. d5
{[%clk 0:04:22.3]} 14... Nb8 {[%clk 0:04:12]} 15. Qd4+ {[%clk 0:04:20.2]} 15...
e5 {[%clk 0:04:08.6]} 16. dxe6+ {[%clk 0:04:18.6]} 16... Kh7 {[%clk 0:04:04.7]}
17. Nf6+ {[%clk 0:04:15.2]} 17... Kh8 {[%clk 0:03:48.5]} 18. Nxh5+ {[%clk
0:04:13]} 18... Kg8 {[%clk 0:03:43.1]} 19. Qg7# {[%clk 0:04:11.4]} 1-0

[Event "Live Chess"]
[Site "Chess.com"]
[Date "2023.05.20"]
[Round "-"]
[White "ranvir123"]
[Black "Cimon"]
[Result "0-1"]
[WhiteElo "923"]
[BlackElo "1830"]
[TimeControl "300"]
[EndTime "15:01:43 PDT"]
[Termination "Cimon won by resignation"]

1. e4 {[%clk 0:04:58]} 1... c5 {[%clk 0:04:58.5]} 2. Nf3 {[%clk 0:04:56.4]} 2...
Nc6 {[%clk 0:04:57.2]} 3. d4 {[%clk 0:04:55]} 3... cxd4 {[%clk 0:04:56]} 4. Nxd4
{[%clk 0:04:54.5]} 4... Nf6 {[%clk 0:04:54.7]} 5. Nxc6 {[%clk 0:04:52.4]} 5...
bxc6 {[%clk 0:04:52.8]} 6. Nc3 {[%clk 0:04:51.5]} 6... e5 {[%clk 0:04:51]} 7.
Bg5 {[%clk 0:04:50.1]} 7... Be7 {[%clk 0:04:48.5]} 8. Bc4 {[%clk 0:04:48.5]}
8... d6 {[%clk 0:04:46.4]} 9. Bxf6 {[%clk 0:04:42.7]} 9... Bxf6 {[%clk
0:04:41.5]} 10. Qh5 {[%clk 0:04:40.3]} 10... O-O {[%clk 0:04:37.4]} 11. O-O-O
{[%clk 0:04:37.4]} 11... Rb8 {[%clk 0:04:30.2]} 12. g4 {[%clk 0:04:32.3]} 12...
Qb6 {[%clk 0:04:25.4]} 13. Na4 {[%clk 0:04:26.8]} 13... Qb4 {[%clk 0:04:18.4]}
14. b3 {[%clk 0:04:24.2]} 14... d5 {[%clk 0:03:37.4]} 15. exd5 {[%clk
0:04:15.6]} 15... cxd5 {[%clk 0:03:35.8]} 16. Rxd5 {[%clk 0:04:08.7]} 16... Be6
{[%clk 0:03:29.5]} 17. c3 {[%clk 0:03:53]} 17... Qa3+ {[%clk 0:03:24.3]} 18. Kc2
{[%clk 0:03:37.7]} 18... Bxd5 {[%clk 0:03:20.7]} 19. Bxd5 {[%clk 0:03:36.1]}
19... Qxa2+ {[%clk 0:03:13.1]} 20. Kd3 {[%clk 0:03:31.3]} 20... Qxf2 {[%clk
0:03:07.4]} 21. g5 {[%clk 0:03:25.7]} 21... Qf5+ {[%clk 0:03:01.6]} 22. Kc4
{[%clk 0:03:21.7]} 22... Qxg5 {[%clk 0:02:56.2]} 23. Qxg5 {[%clk 0:03:16.3]}
23... Bxg5 {[%clk 0:02:55]} 24. Rg1 {[%clk 0:03:11.4]} 24... Rfc8+ {[%clk
0:02:44.7]} 25. Kd3 {[%clk 0:03:05.2]} 25... Bf4 {[%clk 0:02:35.7]} 26. Rf1
{[%clk 0:02:54.6]} 26... Rd8 {[%clk 0:02:33.5]} 27. Ke4 {[%clk 0:02:51.2]} 27...
h5 {[%clk 0:02:25.6]} 28. h4 {[%clk 0:02:46.9]} 28... Rxd5 {[%clk 0:02:04.3]}
29. Kxd5 {[%clk 0:02:38.2]} 29... Rxb3 {[%clk 0:02:02.4]} 30. Rc1 {[%clk
0:02:21.4]} 30... Bxc1 {[%clk 0:01:58.9]} 0-1

[Event "Live Chess"]
[Site "Chess.com"]
[Date "2023.05.20"]
[Round "-"]
[White "LiamBellwood"]
[Black "LodeshChess"]
[Result "1-0"]
[WhiteElo "2074"]
[BlackElo "1069"]
[TimeControl "300"]
[EndTime "15:01:43 PDT"]
[Termination "LiamBellwood won by checkmate"]

1. d4 {[%clk 0:04:59.6]} 1... Nf6 {[%clk 0:04:54.3]} 2. Nc3 {[%clk 0:04:59.2]}
2... d5 {[%clk 0:04:48.4]} 3. Bf4 {[%clk 0:04:55.5]} 3... c6 {[%clk 0:04:40.4]}
4. e3 {[%clk 0:04:54.7]} 4... Bf5 {[%clk 0:04:33.8]} 5. f3 {[%clk 0:04:54.1]}
5... e6 {[%clk 0:04:31.2]} 6. g4 {[%clk 0:04:53.3]} 6... Bg6 {[%clk 0:04:28.1]}
7. h4 {[%clk 0:04:53]} 7... h6 {[%clk 0:04:27.1]} 8. Bd3 {[%clk 0:04:52]} 8...
Bxd3 {[%clk 0:04:25.8]} 9. Qxd3 {[%clk 0:04:51.9]} 9... Bb4 {[%clk 0:04:24.7]}
10. Ne2 {[%clk 0:04:51.2]} 10... O-O {[%clk 0:04:22.5]} 11. g5 {[%clk
0:04:40.4]} 11... Nh5 {[%clk 0:04:10.3]} 12. gxh6 {[%clk 0:04:39.2]} 12... Nxf4
{[%clk 0:04:09.5]} 13. Nxf4 {[%clk 0:04:37.1]} 13... g6 {[%clk 0:04:08.6]} 14.
Nxg6 {[%clk 0:04:20.8]} 14... fxg6 {[%clk 0:04:03.7]} 15. Qxg6+ {[%clk
0:04:20.7]} 15... Kh8 {[%clk 0:04:03]} 16. Qg7# {[%clk 0:04:20.6]} 1-0

[Event "Live Chess"]
[Site "Chess.com"]
[Date "2023.05.20"]
[Round "-"]
[White "LiamClery2020"]
[Black "therealab0ne"]
[Result "1-0"]
[WhiteElo "2089"]
[BlackElo "694"]
[TimeControl "300"]
[EndTime "15:01:53 PDT"]
[Termination "LiamClery2020 won by resignation"]

1. e4 {[%clk 0:04:58.4]} 1... c5 {[%clk 0:04:58.6]} 2. Nf3 {[%clk 0:04:57.1]}
2... Nc6 {[%clk 0:04:58.2]} 3. Bb5 {[%clk 0:04:56.3]} 3... Nf6 {[%clk
0:04:50.4]} 4. Bxc6 {[%clk 0:04:52.6]} 4... bxc6 {[%clk 0:04:46.3]} 5. d3 {[%clk
0:04:52.5]} 5... g6 {[%clk 0:04:43.1]} 6. O-O {[%clk 0:04:51]} 6... Bg7 {[%clk
0:04:42.7]} 7. Re1 {[%clk 0:04:50.4]} 7... O-O {[%clk 0:04:42.3]} 8. Nc3 {[%clk
0:04:49.3]} 8... d5 {[%clk 0:04:33.7]} 9. e5 {[%clk 0:04:48.1]} 9... Nd7 {[%clk
0:04:29.5]} 10. e6 {[%clk 0:04:42.6]} 10... fxe6 {[%clk 0:04:27.8]} 11. Bg5
{[%clk 0:04:41.8]} 11... Bf6 {[%clk 0:04:24.8]} 12. Bxf6 {[%clk 0:04:39.4]}
12... Nxf6 {[%clk 0:04:24.2]} 13. Qd2 {[%clk 0:04:38.9]} 13... d4 {[%clk
0:04:21.3]} 14. Ne4 {[%clk 0:04:37.9]} 14... Nxe4 {[%clk 0:04:19.5]} 15. Rxe4
{[%clk 0:04:37.8]} 15... Rxf3 {[%clk 0:04:03.9]} 16. gxf3 {[%clk 0:04:35]} 16...
Qf8 {[%clk 0:04:03.1]} 17. Rf4 {[%clk 0:04:33]} 17... Qh6 {[%clk 0:03:58.3]} 18.
Rd1 {[%clk 0:04:26.2]} 18... e5 {[%clk 0:03:57.3]} 19. Re4 {[%clk 0:04:22.1]}
19... Qh5 {[%clk 0:03:40.4]} 20. Qe2 {[%clk 0:04:12.2]} 20... Bh3 {[%clk
0:03:39.4]} 21. Rxe5 {[%clk 0:04:06.1]} 21... Qh4 {[%clk 0:02:59.2]} 22. Qe4
{[%clk 0:04:04]} 22... Qxe4 {[%clk 0:02:49.6]} 23. Rxe4 {[%clk 0:04:02.3]} 23...
Rf8 {[%clk 0:02:48.6]} 24. Rxe7 {[%clk 0:03:59.3]} 24... Rf7 {[%clk 0:02:45.4]}
25. Rxf7 {[%clk 0:03:57.6]} 25... Kxf7 {[%clk 0:02:44.7]} 26. c3 {[%clk
0:03:56]} 26... Ke6 {[%clk 0:02:29.7]} 27. Rc1 {[%clk 0:03:50.7]} 27... Bf5
{[%clk 0:02:26.1]} 28. cxd4 {[%clk 0:03:49.1]} 28... cxd4 {[%clk 0:02:21.4]} 29.
Rxc6+ {[%clk 0:03:48.1]} 29... Kd5 {[%clk 0:02:20.5]} 30. Ra6 {[%clk 0:03:46.6]}
30... Bxd3 {[%clk 0:02:19.2]} 31. Rxa7 {[%clk 0:03:45.3]} 31... h5 {[%clk
0:02:07.9]} 32. f4 {[%clk 0:03:44.2]} 32... Bf5 {[%clk 0:02:06.5]} 33. f3 {[%clk
0:03:43.1]} 33... d3 {[%clk 0:02:04.9]} 34. Kf2 {[%clk 0:03:42.5]} 34... Kd4
{[%clk 0:01:59.2]} 35. Ra4+ {[%clk 0:03:39.1]} 35... Kd5 {[%clk 0:01:53.1]} 36.
Ke3 {[%clk 0:03:34]} 1-0

[Event "Live Chess"]
[Site "Chess.com"]
[Date "2023.05.20"]
[Round "-"]
[White "MarkLim1"]
[Black "Jo1ts"]
[Result "1-0"]
[WhiteElo "1666"]
[BlackElo "765"]
[TimeControl "300"]
[EndTime "15:01:54 PDT"]
[Termination "MarkLim1 won by resignation"]

1. d4 {[%clk 0:04:58.6]} 1... d5 {[%clk 0:04:58.9]} 2. Nf3 {[%clk 0:04:57.8]}
2... Nf6 {[%clk 0:04:53.2]} 3. c4 {[%clk 0:04:56.7]} 3... Bf5 {[%clk 0:04:44]}
4. cxd5 {[%clk 0:04:53.3]} 4... Nxd5 {[%clk 0:04:41.8]} 5. Nc3 {[%clk 0:04:50]}
5... Nxc3 {[%clk 0:04:40.3]} 6. bxc3 {[%clk 0:04:49.1]} 6... Nd7 {[%clk
0:04:32]} 7. Bf4 {[%clk 0:04:48.2]} 7... g6 {[%clk 0:04:26.6]} 8. Qb3 {[%clk
0:04:46.9]} 8... b6 {[%clk 0:04:12.8]} 9. Ne5 {[%clk 0:04:44.2]} 9... Bg7 {[%clk
0:04:03.2]} 10. Nxd7 {[%clk 0:04:38]} 10... Qxd7 {[%clk 0:04:00.6]} 11. f3
{[%clk 0:04:37.3]} 11... c5 {[%clk 0:03:52.2]} 12. e4 {[%clk 0:04:36.1]} 12...
Be6 {[%clk 0:03:47.1]} 13. d5 {[%clk 0:04:35.1]} 13... Bf5 {[%clk 0:03:33.7]}
14. exf5 {[%clk 0:04:33.3]} 14... Qxf5 {[%clk 0:03:30.2]} 15. Be2 {[%clk
0:04:31.9]} 15... Qxf4 {[%clk 0:03:21.5]} 16. O-O {[%clk 0:04:30.8]} 16... O-O
{[%clk 0:03:09.8]} 17. Rad1 {[%clk 0:04:23.3]} 17... Qe3+ {[%clk 0:03:07.5]} 18.
Kh1 {[%clk 0:04:20.3]} 18... Rad8 {[%clk 0:02:59.8]} 19. Bc4 {[%clk 0:04:18.4]}
19... Qxc3 {[%clk 0:02:48.6]} 20. Rfe1 {[%clk 0:04:15.6]} 20... Qxb3 {[%clk
0:02:41.8]} 21. axb3 {[%clk 0:04:14]} 21... e6 {[%clk 0:02:40.7]} 22. dxe6
{[%clk 0:04:12.3]} 22... fxe6 {[%clk 0:02:37.7]} 23. Rxd8 {[%clk 0:04:04.2]}
23... Rxd8 {[%clk 0:02:34.3]} 24. Rxe6 {[%clk 0:04:03.2]} 24... Rd1+ {[%clk
0:02:30.2]} 25. Re1+ {[%clk 0:04:02.2]} 1-0